fUSD/lending_fUSD_20251220
["ID","MTS","AMOUNT","RATE_DAILY","PERIOD"]
[399251381,1766206241596,-151.0,0.00015818,2]
[399251382,1766206241605,-33395.22820041,0.0001582,2]
[399251383,1766206241614,-31236.18345544,0.00015843,2]
[399251384,1766206241623,-2251.8591214,0.000159,2]
[399251385,1766206241631,-2500.0,0.00015964,2]
[399251386,1766206241640,-1964.07,0.00015971,2]
[399251387,1766206241650,-500.0,0.00015972,2]
[399251388,1766206241658,-200.0,0.00015972,2]
[399251389,1766206241667,-200.0,0.00015972,2]
[399251390,1766206241676,-1600.0,0.00015981,2]
[399251391,1766206241685,-537.03290161,0.00015999,2]
[399251392,1766206241694,-500.0,0.00015999,2]
[399251393,1766206241704,-307.46784516,0.00016,2]
[399251394,1766206241715,-479.28145689,0.00016138,2]
[399251395,1766206241724,-946.01697048,0.00016206,2]
[399251396,1766206241735,-1964.07,0.00016245,2]
[399251397,1766206241744,-500.37407939,0.000163,2]
[399251398,1766206241753,-570.20028222,0.000163,2]
[399251399,1766206241763,-162.35722153,0.000163,2]
[399251400,1766206241773,-500.0,0.000163,2]
[399251401,1766206241781,-333.44713486,0.000163,2]
[399251402,1766206241790,-500.48687625,0.000163,2]
[399251403,1766206241799,-500.29716194,0.000163,2]
[399251404,1766206241812,-590.13268338,0.000163,2]
[399251405,1766206241823,-500.21661931,0.000163,2]
[399251406,1766206241833,-500.0,0.000163,2]
[399251407,1766206241842,-500.0,0.000163,2]
[399251408,1766206241854,-500.30081252,0.000163,2]
[399251409,1766206241863,-500.0,0.000163,2]
[399251410,1766206241872,-168.09419939,0.000163,2]
[399251411,1766206241881,-500.0,0.000163,2]
[399251412,1766206241890,-500.0,0.000163,2]
[399251413,1766206241900,-500.33069287,0.000163,2]
[399251414,1766206241909,-500.0,0.000163,2]
[399251415,1766206241919,-500.0,0.000163,2]
[399251416,1766206241928,-500.0,0.000163,2]
[399251417,1766206241937,-500.0,0.000163,2]
[399251418,1766206241946,-500.0,0.000163,2]
[399251419,1766206241956,-500.0,0.000163,2]
[399251420,1766206241964,-162.24077786,0.000163,2]
[399251421,1766206241973,-500.59670517,0.000163,2]
[399251422,1766206241982,-500.0,0.000163,2]
[399251423,1766206241991,-500.34670783,0.000163,2]
[399251424,1766206242001,-426.51211002,0.000163,2]
[399251425,1766206242010,-500.5161197,0.000163,2]
[399251426,1766206242020,-500.19600128,0.000163,2]
[399251427,1766206242031,-500.4308882,0.000163,2]
[399251428,1766206242041,-500.5692733,0.000163,2]
[399251429,1766206242051,-500.0,0.000163,2]
[399251430,1766206242061,-518.77690272,0.000163,2]
[399251431,1766206242070,-500.0,0.000163,2]
[399251432,1766206242080,-334.5464899,0.000163,2]
[399251433,1766206242090,-555.87900727,0.000163,2]
[399251434,1766206242099,-500.0,0.000163,2]
[399251435,1766206242108,-330.6916765,0.000163,2]
[399251436,1766206242117,-452.09330567,0.000163,2]
[399251437,1766206242126,-500.45922425,0.000163,2]
[399251438,1766206242135,-468.55909228,0.000163,2]
[399251439,1766206242145,-500.0,0.000163,2]
[399251440,1766206242154,-523.00588269,0.000163,2]
[399251441,1766206242163,-543.08632529,0.000163,2]
[399251442,1766206242173,-500.44010865,0.000163,2]
[399251443,1766206242183,-500.0,0.000163,2]
[399251444,1766206242192,-500.0,0.000163,2]
[399251445,1766206242202,-500.0,0.000163,2]
[399251446,1766206242212,-177.2862913,0.000163,2]
[399251447,1766206242221,-161.07996631,0.000163,2]
[399251448,1766206242230,-159.43095819,0.000163,2]
[399251449,1766206242239,-500.34860131,0.000163,2]
[399251450,1766206242249,-577.20648211,0.000163,2]
[399251451,1766206242259,-516.37835686,0.000163,2]
[399251452,1766206242269,-166.91561833,0.000163,2]
[399251453,1766206242278,-500.0,0.000163,2]
[399251454,1766206242289,-500.0,0.000163,2]
[399251455,1766206242299,-168.56959317,0.000163,2]
[399251456,1766206242310,-500.36669311,0.000163,2]
[399251457,1766206242319,-500.0,0.000163,2]
[399251458,1766206242329,-500.0,0.000163,2]
[399251459,1766206242338,-500.0,0.000163,2]
[399251460,1766206242347,-344.64845159,0.000163,2]
[399251461,1766206242357,-500.0,0.000163,2]
[399251462,1766206242366,-220.27121476,0.000163,2]
[399251463,1766206242375,-500.0,0.000163,2]
[399251464,1766206242384,-500.0,0.000163,2]
[399251465,1766206242392,-500.30832876,0.000163,2]
[399251466,1766206242401,-529.96646376,0.000163,2]
[399251467,1766206242410,-500.0,0.000163,2]
[399251468,1766206242419,-500.0,0.000163,2]
[399251470,1766206242428,-500.0,0.000163,2]
[399251472,1766206242437,-500.0,0.000163,2]
[399251473,1766206242446,-500.0,0.000163,2]
[399251474,1766206242455,-500.0,0.000163,2]
[399251475,1766206242464,-500.0,0.000163,2]
[399251476,1766206242473,-500.0,0.000163,2]
[399251477,1766206242482,-500.16141079,0.000163,2]
[399251478,1766206242490,-488.68,0.00016326,2]
[399251479,1766206242500,-33395.22820041,0.0001636,2]
[399251480,1766206242510,-500.0,0.00016371,2]
[399251481,1766206242521,-512.34192822,0.00016371,2]
[399251482,1766206242532,-31236.18345544,0.00016371,2]
[399251483,1766206242541,-228.0,0.000164,2]
[399251484,1766206242550,-319.0,0.000164,2]
[399251485,1766206242559,-182.0,0.000164,2]
[399251486,1766206242568,-183.63284637,0.000164,2]
[399251487,1766206242578,-407.52,0.00016419,2]
[399251488,1766206242587,-500.0,0.00016437,2]
[399251489,1766206242596,-500.0,0.00016437,2]
[399251490,1766206242606,-500.0,0.00016437,2]
[399251491,1766206242615,-500.0,0.00016437,2]
[399251492,1766206242624,-500.0,0.00016437,2]
[399251493,1766206242633,-500.0,0.00016437,2]
[399251494,1766206242642,-500.0,0.00016437,2]
[399251495,1766206242653,-500.0,0.00016437,2]
[399251496,1766206242664,-500.0,0.00016438,2]
[399251497,1766206242673,-500.0,0.00016438,2]
[399251498,1766206242682,-500.0,0.00016438,2]
[399251499,1766206242692,-500.0,0.00016438,2]
[399251500,1766206242701,-500.0,0.00016438,2]
[399251501,1766206242711,-500.0,0.00016438,2]
[399251502,1766206242720,-500.0,0.00016438,2]
[399251503,1766206242731,-500.0,0.00016438,2]
[399251504,1766206242741,-500.0,0.00016438,2]
[399251505,1766206242750,-500.0,0.00016438,2]
[399251506,1766206242760,-500.0,0.00016438,2]
[399251507,1766206242770,-500.0,0.00016438,2]
[399251508,1766206242780,-500.0,0.00016438,2]
[399251509,1766206242790,-500.0,0.00016438,2]
[399251510,1766206242801,-500.0,0.00016438,2]
[399251511,1766206242811,-500.0,0.00016438,2]
[399251512,1766206242821,-500.0,0.00016438,2]
[399251513,1766206242832,-500.0,0.00016438,2]
[399251514,1766206242843,-500.0,0.00016438,2]
[399251515,1766206242851,-500.0,0.00016438,2]
[399251516,1766206242862,-500.0,0.00016438,2]
[399251517,1766206242872,-500.0,0.00016438,2]
[399251518,1766206242882,-500.0,0.00016438,2]
[399251519,1766206242892,-500.0,0.00016438,2]
[399251520,1766206242901,-500.0,0.00016438,2]
[399251521,1766206242910,-500.0,0.00016438,2]
[399251522,1766206242919,-500.0,0.00016438,2]
[399251523,1766206242928,-500.0,0.00016438,2]
[399251524,1766206242940,-500.0,0.00016438,2]
[399251525,1766206242949,-500.0,0.00016438,2]
[399251526,1766206242958,-500.0,0.00016438,2]
[399251527,1766206242967,-500.0,0.00016438,2]
[399251528,1766206242977,-500.0,0.00016438,2]
[399251529,1766206242987,-500.0,0.00016438,2]
[399251530,1766206242996,-500.0,0.00016438,2]
[399251531,1766206243005,-500.0,0.00016438,2]
[399251532,1766206243015,-500.0,0.00016438,2]
[399251533,1766206243024,-500.0,0.00016438,2]
[399251534,1766206243035,-500.0,0.00016438,2]
[399251535,1766206243043,-500.0,0.00016438,2]
[399251536,1766206243053,-500.0,0.00016438,2]
[399251537,1766206243064,-500.0,0.00016438,2]
[399251538,1766206243073,-500.0,0.00016438,2]
[399251539,1766206243083,-500.0,0.00016438,2]
[399251540,1766206243092,-500.0,0.00016438,2]
[399251541,1766206243101,-500.0,0.00016438,2]
[399251542,1766206243110,-500.0,0.00016438,2]
[399251543,1766206243120,-500.0,0.00016438,2]
[399251544,1766206243131,-500.0,0.00016438,2]
[399251545,1766206243140,-500.0,0.00016438,2]
[399251546,1766206243153,-500.0,0.00016438,2]
[399251547,1766206243162,-500.0,0.00016438,2]
[399251548,1766206243172,-500.0,0.00016438,2]
[399251549,1766206243181,-500.0,0.00016438,2]
[399251550,1766206243191,-500.0,0.00016438,2]
[399251551,1766206243199,-3000.71,0.00016438,2]
[399251552,1766206243208,-225.86,0.00016438,2]
[399251553,1766206243217,-800.62641417,0.00016438,2]
[399251554,1766206243227,-900.0,0.00016438,2]
[399251555,1766206243238,-164.42,0.0001644,2]
[399251556,1766206243247,-164.42,0.0001644,2]
[399251557,1766206243257,-164.42,0.0001644,2]
[399251558,1766206243266,-164.42,0.0001644,2]
[399251559,1766206243275,-164.42,0.0001644,2]
[399251560,1766206243285,-164.42,0.0001644,2]
[399251561,1766206243294,-3000.0,0.00016512,2]
[399251562,1766206243303,-500.0,0.00016517,2]
[399251563,1766206243312,-1964.07,0.00016519,2]
[399251564,1766206243322,-500.0,0.0001652,2]
[399251565,1766206243331,-200.0,0.0001652,2]
[399251566,1766206243340,-200.0,0.0001652,2]
[399251567,1766206243349,-167.79,0.00016712,2]
[399251568,1766206243358,-204.570509,0.00016724,2]
[399251569,1766206243368,-1964.07,0.00016793,2]
[399251570,1766206243376,-846.45332019,0.0001683,2]
[399251571,1766206243385,-1000.0,0.00016848,2]
[399251572,1766206243394,-1001.01249642,0.00016848,2]
[399251573,1766206243403,-1001.0881382,0.00016848,2]
[399251574,1766206243412,-1001.31913615,0.00016848,2]
[399251575,1766206243421,-1000.91698308,0.00016848,2]
[399251576,1766206243430,-1001.19540644,0.00016848,2]
[399251577,1766206243439,-1000.0,0.00016848,2]
[399251578,1766206243448,-1000.76703223,0.00016848,2]
[399251579,1766206243458,-1001.04078122,0.00016848,2]
[399251580,1766206243466,-1001.0574546,0.00016848,2]
[399251581,1766206243475,-1001.02020729,0.00016848,2]
[399251582,1766206243484,-1001.04801864,0.00016848,2]
[399251583,1766206243493,-1002.26047729,0.00016848,2]
[399251584,1766206243502,-1001.94292641,0.00016848,2]
[399251585,1766206243511,-1000.0,0.00016848,2]
[399251586,1766206243520,-1001.39291005,0.00016848,2]
[399251587,1766206243528,-1000.0,0.00016848,2]
[399251588,1766206243537,-179.47316237,0.00016848,2]
[399251589,1766206243546,-221.90485079,0.00016848,2]
[399251590,1766206243555,-1000.87355102,0.00016848,2]
[399251591,1766206243564,-1000.96314567,0.00016848,2]
[399251592,1766206243573,-1000.0,0.00016848,2]
[399251593,1766206243582,-998.88830841,0.00016848,2]
[399251594,1766206243591,-501.11789279,0.00016848,2]
[399251595,1766206243600,-1000.0,0.00016848,2]
[399251596,1766206243609,-1000.83354161,0.00016848,2]
[399251597,1766206243618,-1000.0,0.00016848,2]
[399251598,1766206243627,-1000.0,0.00016848,2]
[399251599,1766206243636,-500.58632088,0.00016848,2]
[399251600,1766206243645,-1001.1215833,0.00016848,2]
[399251601,1766206243654,-1000.0,0.00016848,2]
[399251602,1766206243663,-501.13881872,0.00016848,2]
[399251603,1766206243672,-1000.9465121,0.00016848,2]
[399251604,1766206243681,-1001.82577211,0.00016848,2]
[399251605,1766206243691,-1000.866265,0.00016848,2]
[399251606,1766206243700,-1000.0,0.00016848,2]
[399251607,1766206243709,-200.0,0.00016864,2]
[399251608,1766206243719,-1019.77444314,0.00016899,5]
[399251609,1766206243728,-500.0,0.00016899,2]
[399251610,1766206243738,-33395.22820041,0.000169,2]
[399251611,1766206243748,-31236.18345544,0.000169,2]
[399251612,1766206243758,-390.27278712,0.000169,2]
[399251613,1766206243768,-10000.0,0.000169,2]
[399251614,1766206243778,-510.0020883,0.000169,2]
[399251615,1766206243788,-1844.84411067,0.000169,2]
[399251616,1766206243800,-946.01697048,0.000169,2]
[399251617,1766206243811,-225.52306362,0.000169,2]
[399251618,1766206243822,-181.47081458,0.000169,2]
[399251619,1766206243832,-500.0,0.000169,2]
[399251620,1766206243842,-500.0,0.000169,2]
[399251621,1766206243852,-500.0,0.000169,2]
[399251622,1766206243862,-500.0,0.000169,2]
[399251623,1766206243872,-500.0,0.000169,2]
[399251624,1766206243880,-500.0,0.000169,2]
[399251625,1766206243889,-500.0,0.000169,2]
[399251626,1766206243898,-500.0,0.000169,2]
[399251627,1766206243907,-500.0,0.000169,2]
[399251628,1766206243915,-500.0,0.000169,2]
[399251629,1766206243924,-500.0,0.000169,2]
[399251630,1766206243933,-500.0,0.000169,2]
[399251631,1766206243942,-500.0,0.000169,2]
[399251632,1766206243951,-500.0,0.000169,2]
[399251633,1766206243960,-500.0,0.000169,2]
[399251634,1766206243968,-500.0,0.000169,2]
[399251635,1766206243977,-500.0,0.000169,2]
[399251636,1766206243986,-500.0,0.000169,2]
[399251637,1766206243995,-500.0,0.000169,2]
[399251638,1766206244004,-500.0,0.000169,2]
[399251639,1766206244013,-500.0,0.000169,2]
[399251640,1766206244022,-500.0,0.000169,2]
[399251641,1766206244031,-500.0,0.000169,2]
[399251642,1766206244040,-500.0,0.000169,2]
[399251643,1766206244049,-500.0,0.000169,2]
[399251644,1766206244058,-410.0925731,0.000169,2]
[399251645,1766206244067,-479.28145689,0.00016937,2]
[399251646,1766206244076,-457.0,0.00016959,2]
[399251647,1766206244085,-150.10981544,0.00016973,2]
[399251648,1766206244095,-163.39899626,0.00016973,2]
[399251649,1766206244105,-150.09235231,0.00016973,2]
[399251650,1766206244116,-150.0,0.00016973,2]
[399251651,1766206244126,-150.0,0.00016973,2]
[399251652,1766206244135,-500.0,0.00016986,2]
[399251653,1766206244144,-500.0,0.00016986,2]
[399251654,1766206244157,-500.0,0.00016986,2]
[399251655,1766206244166,-500.0,0.00016986,2]
[399251656,1766206244176,-467.18251007,0.00016986,2]
[399251657,1766206244185,-500.0,0.00016986,2]
[399251658,1766206244196,-505.83670147,0.00016986,2]
[399251659,1766206244206,-500.0,0.00016986,2]
[399251660,1766206244215,-500.0,0.00016986,2]
[399251661,1766206244225,-360480.67,0.00016986,2]
[399251662,1766206244235,-1647.70919262,0.0001699,2]
[399251663,1766206244244,-1647.70919262,0.0001699,2]
[399251664,1766206244253,-236.38,0.00016991,2]
[399251665,1766206244263,-500.0,0.00016995,2]
[399251666,1766206244271,-469.51043734,0.00016995,2]
[399251667,1766206244280,-500.0,0.00016995,2]
[399251668,1766206244289,-500.0,0.00016995,2]
[399251669,1766206244299,-500.0,0.00016995,2]
[399251670,1766206244308,-517.41741792,0.00016995,2]
[399251671,1766206244317,-500.0,0.00016995,2]
[399251672,1766206244326,-500.0,0.00016995,2]
[399251673,1766206244335,-541.48637229,0.00016995,2]
[399251674,1766206244344,-500.0,0.00016995,2]
[399251675,1766206244353,-500.0,0.00016995,2]
[399251676,1766206244362,-500.0,0.00016995,2]
[399251677,1766206244371,-500.0,0.00016995,2]
[399251678,1766206244380,-500.0,0.00016995,2]
[399251679,1766206244389,-500.0,0.00016995,2]
[399251680,1766206244398,-500.0,0.00016995,2]
[399251681,1766206244407,-500.0,0.00016995,2]
[399251682,1766206244417,-393179.8815896,0.00016996,2]
[399251683,1766206244427,-5813.2796279,0.00016996,2]
[399251684,1766206244438,-13733.5295318,0.00016996,2]
[399251685,1766206244448,-151.0,0.00016997,2]
[399251686,1766206244457,-1019.77444314,0.00016999,5]
[399251687,1766206244467,-1019.77444314,0.00016999,5]
[399251688,1766206244476,-500.0,0.00016999,2]
[399251689,1766206244487,-500.0,0.00016999,2]
[399251690,1766206244496,-500.0,0.00016999,2]
[399251691,1766206244505,-500.0,0.00016999,2]
[399251692,1766206244514,-500.0,0.00016999,2]
[399251693,1766206244526,-244.49443283,0.00016999,2]
[399251694,1766206244536,-500.0,0.00016999,2]
[399251695,1766206244545,-500.0,0.00016999,2]
[399251696,1766206244554,-500.0,0.00016999,2]
[399251697,1766206244563,-500.0,0.00016999,2]
[399251698,1766206244572,-500.0,0.00016999,2]
[399251699,1766206244581,-500.0,0.00016999,2]
[399251700,1766206244590,-500.0,0.00016999,2]
[399251701,1766206244599,-500.0,0.00016999,2]
[399251702,1766206244608,-500.0,0.00016999,2]
[399251703,1766206244617,-500.0,0.00016999,2]
[399251704,1766206244626,-500.0,0.00016999,2]
[399251705,1766206244635,-500.0,0.00016999,2]
[399251706,1766206244643,-500.0,0.00016999,2]
[399251707,1766206244652,-500.0,0.00016999,2]
[399251708,1766206244661,-500.0,0.00016999,2]
[399251709,1766206244670,-500.0,0.00016999,2]
[399251710,1766206244679,-500.0,0.00016999,2]
[399251711,1766206244688,-500.0,0.00016999,2]
[399251712,1766206244697,-500.0,0.00016999,2]
[399251713,1766206244708,-500.0,0.00016999,2]
[399251714,1766206244717,-500.0,0.00016999,2]
[399251715,1766206244727,-500.0,0.00016999,2]
[399251716,1766206244739,-500.0,0.00016999,2]
[399251717,1766206244748,-500.0,0.00016999,2]
[399251718,1766206244759,-500.0,0.00016999,2]
[399251719,1766206244768,-500.0,0.00016999,2]
[399251720,1766206244777,-511.45159126,0.00016999,2]
[399251721,1766206244787,-500.0,0.00016999,2]
[399251722,1766206244797,-500.0,0.00016999,2]
[399251723,1766206244808,-500.0,0.00016999,2]
[399251724,1766206244818,-500.0,0.00016999,2]
[399251725,1766206244827,-500.0,0.00016999,2]
[399251726,1766206245009,-500.0,0.00016999,2]
[399251727,1766206245019,-308.45911544,0.00016999,2]
[399251728,1766206245029,-500.0,0.00016999,2]
[399251729,1766206245037,-534.70383022,0.00016999,2]
[399251730,1766206245047,-500.0,0.00016999,2]
[399251731,1766206245056,-500.0,0.00016999,2]
[399251732,1766206245067,-500.0,0.00016999,2]
[399251733,1766206245076,-500.0,0.00016999,2]
[399251734,1766206245085,-500.0,0.00016999,2]
[399251735,1766206245094,-500.0,0.00016999,2]
[399251736,1766206245105,-592.36853989,0.00016999,2]
[399251737,1766206245114,-3310542.20382606,0.00017,2]
[399251738,1766206245349,-1134.18729357,0.00017,2]
[399251739,1766206245360,-1820.89468532,0.00017,2]
[399251740,1766206245376,-7744779.12966742,0.00017,2]
[399251741,1766206245587,-814.83816458,0.0001689,2]
[399251742,1766206245599,-814.83816454,0.00016892,2]
[399251743,1766206245609,-814.83816454,0.00016894,2]
[399251744,1766206245619,-814.83816454,0.00016896,2]
[399251745,1766206245630,-814.83816454,0.00016898,2]
[399251746,1766206245639,-814.83816454,0.000169,2]
[399251747,1766206245648,-861608.27624246,0.00017,2]
[399251748,1766206245662,-439.16784143,0.00017,2]
[399251749,1766206245673,-501.91709979,0.00017,2]
[399251750,1766206245814,-5823.65458347,0.00017,2]
[399251751,1766206245827,-86228.2869839,0.00017,2]
[399251752,1766206245838,-533.9999989,0.00017,2]
[399251753,1766206245850,-1063.53697006,0.00017,2]
[399251754,1766206245862,-678.70887669,0.00017,2]
[399251755,1766206245880,-167618.01449985,0.00017,2]
[399251756,1766206245893,-934.65480264,0.00017,2]
[399251762,1766207009539,-250.0,0.00011841,2]
[399251763,1766207009560,-195.0,0.00011841,2]
[399251764,1766207009581,-195.0,0.00011841,2]
[399251765,1766207009605,-660.0,0.00011841,2]
[399251766,1766207328325,1019.77444314,0.00011941,3]
[399251767,1766207364106,7911.33,0.00011741,2]
[399251768,1766207364134,10000.01,0.00011741,2]
[399251769,1766207364160,10000.01,0.00011741,2]
[399251770,1766207364185,10000.01,0.00011741,2]
[399251771,1766207364210,10000.01,0.00011741,2]
[399251772,1766207364237,10000.01,0.00011741,2]
[399251773,1766207364262,10000.01,0.00011741,2]
[399251774,1766207364292,10000.01,0.00011741,2]
[399251775,1766207364318,10000.01,0.00011741,2]
[399251776,1766207364344,10000.01,0.00011741,2]
[399251777,1766207387979,1019.77444314,0.0001174,3]
[399251778,1766207395095,-317.97782413,0.00011741,2]
[399251779,1766207395271,-10000.01,0.00011741,2]
[399251780,1766207395414,-10000.01,0.00011741,2]
[399251781,1766207395595,-10000.01,0.00011741,2]
[399251782,1766207395793,-10000.01,0.00011741,2]
[399251783,1766207395989,-10000.01,0.00011741,2]
[399251784,1766207401385,1019.77444314,0.00011841,3]
[399251785,1766207403706,-300.0,0.0001174,2]
[399251786,1766207403736,-300.0,0.0001174,2]
[399251787,1766207403766,-540.0,0.0001174,2]
[399251788,1766207403825,-7720.01,0.00011741,2]
[399251789,1766207403854,-10000.01,0.00011741,2]
[399251790,1766207404166,-10000.01,0.00011741,2]
[399251791,1766207404264,-10000.01,0.00011741,2]
[399251792,1766207413411,-10000.01,0.00011741,2]
[399251793,1766207420434,-10000.01,0.00011741,2]
[399251794,1766207420623,-10000.01,0.00011741,2]
[399251795,1766207420759,-10000.01,0.00011741,2]
[399251796,1766207420918,-10000.01,0.00011741,2]
[399251797,1766207421094,-10000.01,0.00011741,2]
[399251798,1766207421266,-10000.01,0.00011741,2]
[399251799,1766207421421,-10000.01,0.00011741,2]
[399251800,1766207429988,-10000.01,0.00011741,2]
[399251801,1766207430108,-10000.01,0.00011741,2]
[399251808,1766207431778,-455439.3233537,0.00011741,2]
[399251809,1766207431791,-58091.014439,0.00011741,2]
[399251810,1766207431803,-12173.02512558,0.00011741,2]
[399251811,1766207431834,-350.56056014,0.00011741,2]
[399251812,1766207431847,-940.0,0.00011741,2]
[399251813,1766207431892,-567.9386135,0.00011741,2]
[399251826,1766207437791,-238.9395345,0.0001174,2]
[399251828,1766207437801,-204.6650155,0.0001174,2]
[399251830,1766207437810,-500.0,0.0001174,2]
[399251832,1766207437819,-2138.06746092,0.00011741,2]
[399251834,1766207437831,-5175.02687909,0.00011741,2]
[399251837,1766207437847,-1349.90711029,0.00011741,2]
[399251839,1766207437858,-177825.54863365,0.00011741,2]
[399251840,1766207437867,-195.0,0.0001184,2]
[399251841,1766207437876,-250.0,0.00011841,2]
[399251842,1766207437886,-195.0,0.00011841,2]
[399251843,1766207437895,-500.0,0.00011841,2]
[399251844,1766207437904,-500.0,0.00011841,2]
[399251845,1766207437913,-500.0,0.00011841,2]
[399251846,1766207437922,-500.0,0.00011841,2]
[399251847,1766207437931,-500.0,0.00011841,2]
[399251848,1766207437940,-500.0,0.00011841,2]
[399251849,1766207437950,-201.77626679,0.00011841,2]
[399251850,1766207437960,-27591.04624507,0.00011841,2]
[399251851,1766207437972,-2500.0,0.00011842,2]
[399251852,1766207437982,-421.022,0.00011842,2]
[399251853,1766207437992,-6990.095,0.00011842,2]
[399251854,1766207438002,-23376.65974033,0.00011842,2]
[399251855,1766207438011,-186.38723325,0.00011892,2]
[399251856,1766207438020,-4495.59,0.00011935,2]
[399251857,1766207438029,-1820.76,0.00011935,2]
[399251858,1766207438049,-9999.99,0.00011935,2]
[399251859,1766207438060,-9999.99,0.00011935,2]
[399251860,1766207438070,-332.46,0.00011935,2]
[399251861,1766207438080,-200.0,0.00011935,2]
[399251862,1766207438090,-151.0,0.00011935,2]
[399251863,1766207438099,-151.0,0.00011935,2]
[399251864,1766207438109,-151.0,0.00011935,2]
[399251865,1766207438118,-151.0,0.00011935,2]
[399251867,1766207438128,-151.0,0.00011935,2]
[399251869,1766207438137,-151.0,0.00011935,2]
[399251871,1766207438146,-151.0,0.00011935,2]
[399251872,1766207438155,-500.0,0.00011935,2]
[399251875,1766207438165,-151.0,0.00011935,2]
[399251876,1766207438175,-151.0,0.00011935,2]
[399251877,1766207438184,-151.0,0.00011935,2]
[399251878,1766207438194,-151.0,0.00011935,2]
[399251879,1766207438204,-151.0,0.00011935,2]
[399251880,1766207438214,-151.0,0.00011935,2]
[399251881,1766207438223,-151.0,0.00011935,2]
[399251882,1766207438232,-151.0,0.00011935,2]
[399251884,1766207438241,-151.0,0.00011935,2]
[399251886,1766207438251,-151.0,0.00011935,2]
[399251887,1766207438260,-151.0,0.00011935,2]
[399251888,1766207438269,-151.0,0.00011935,2]
[399251889,1766207438278,-151.0,0.00011935,2]
[399251891,1766207438287,-500.0,0.00011935,2]
[399251892,1766207438297,-500.0,0.00011935,2]
[399251893,1766207438306,-500.0,0.00011935,2]
[399251894,1766207438315,-500.0,0.00011935,2]
[399251895,1766207438325,-500.0,0.00011935,2]
[399251896,1766207438334,-500.0,0.00011935,2]
[399251897,1766207438343,-500.0,0.00011935,2]
[399251898,1766207438353,-500.0,0.00011935,2]
[399251899,1766207438362,-500.0,0.00011935,2]
[399251900,1766207438371,-500.0,0.00011935,2]
[399251901,1766207438380,-500.0,0.00011935,2]
[399251902,1766207438390,-500.0,0.00011935,2]
[399251903,1766207438400,-500.0,0.00011935,2]
[399251904,1766207438410,-500.0,0.00011935,2]
[399251905,1766207438419,-500.0,0.00011935,2]
[399251906,1766207438429,-500.0,0.00011935,2]
[399251907,1766207438439,-500.0,0.00011935,2]
[399251908,1766207438448,-500.0,0.00011935,2]
[399251909,1766207438461,-500.0,0.00011935,2]
[399251910,1766207438471,-200.0,0.00011935,2]
[399251911,1766207438480,-500.0,0.00011935,2]
[399251912,1766207438490,-500.0,0.00011935,2]
[399251913,1766207438499,-500.0,0.00011935,2]
[399251914,1766207438509,-151.0,0.00011935,2]
[399251915,1766207438518,-151.0,0.00011935,2]
[399251916,1766207438527,-151.0,0.00011935,2]
[399251917,1766207438536,-151.0,0.00011935,2]
[399251918,1766207438546,-151.0,0.00011935,2]
[399251919,1766207438555,-151.0,0.00011935,2]
[399251920,1766207438565,-151.0,0.00011935,2]